[Event "WJCC U20 Open 2019"]
[Site "New Delhi"]
[Date "2019.10.15"]
[Round "1.16"]
[White "Sterck, Arno"]
[Black "Iniyan, P."]
[Result "0-1"]
[ECO "D71"]
[WhiteElo "2331"]
[BlackElo "2509"]
[Annotator "RC"]
[PlyCount "96"]
[EventDate "2019.10.15"]
[EventType "swiss"]
[EventCountry "IND"]
[SourceTitle "playchess.com"]
[Source "ChessBase"]
[SourceQuality "1"]
[TimeControl "40/5400+30:1800+30"]

1. d4 {[%emt 0:00:00]} Nf6 {[%emt 0:00:14]} 2. c4 {[%emt 0:00:00]} g6 {[%emt 0:00:15]} 3. g3 {[%emt 0:00:00]} Bg7 {[%emt 0:02:18]} 4. Bg2 {[%emt 0:00:00]} c5 {[%emt 0:00:14]} 5. d5 {[%emt 0:00:23]} d6 {[%emt 0:00:53]} 6. Nc3 {[%emt 0:00:19]} O-O {[%emt 0:00:44]} 7. Nf3 {[%emt 0:00:09]} e6 {[%emt 0:00:13]} 8. O-O {[%emt 0:00:06]} exd5 {[%emt 0:00:04]} 9. cxd5 {[%emt 0:00:04]} Re8 {[%emt 0:00:54]} 10. Bf4 {[%emt 0:00:12]} a6 {[%emt 0:13:17]} 11. a4 {[%emt 0:00:14]} Ne4 {[%emt 0:01:57]} 12. Nxe4 {[%emt 0:00:28]} Rxe4 {[%emt 0:00:08]} 13. Nd2 {[%emt 0:00:05]} Rb4 {[%emt 0:02:58]} 14. Ne4 {[%emt 0:13:55]} f5 {[%emt 0:10:34]} 15. Ng5 {[%emt 0:02:29]} Be5 {[%emt 0:03:38]} 16. Bxe5 {[%emt 0:07:01]} dxe5 {[%emt 0:00:07]} 17. Qc1 {[%emt 0:00:33]} Qd6 {[%emt 0:11:54]} 18. Rd1 {[%emt 0:07:31]} a5 {[%emt 0:01:23]} 19. Ne6 {[%emt 0:03:12]} b6 {[%emt 0:01:00]} 20. h4 {[%emt 0:04:15]} Ra7 {[%emt 0:14:31]} 21. h5 {[%emt 0:06:26]} Bxe6 {[%emt 0:01:23]} 22. dxe6 {[%emt 0:00:08]} Rd4 {[%emt 0:00:06]} 23. e3 {[%emt 0:00:15]} Rxd1+ {[%emt 0:00:06]} 24. Qxd1 {[%emt 0:00:08]} Qc7 {[%emt 0:01:34]} 25. Bd5 {[%emt 0:08:20]} Kg7 {[%emt 0:03:10]} 26. e4 {[%emt 0:04:19]} f4 {[%emt 0:02:03]} 27. Qg4 {[%emt 0:01:47]} Nc6 {[%emt 0:00:34]} 28. Bxc6 {[%emt 0:14:49]} Qxc6 {[%emt 0:00:08]} 29. Rd1 {[%emt 0:00:04]} Qxe4 {[%emt 0:06:21]} 30. Qh4 {[%emt 0:06:02]} h6 {[%emt 0:00:18]} 31. hxg6 {[%emt 0:04:33]} Qf3 {[%emt 0:06:02]} 32. Re1 {[%emt 0:01:58]} fxg3 {[%emt 0:00:06]} 33. fxg3 {[%emt 0:01:46]} Qf6 {[%emt 0:00:06]} 34. Qh5 {[%emt 0:02:00]} Qxe6 {[%emt 0:04:11]} 35. Qxe5+ {[%emt 0:02:05]} Qxe5 {[%emt 0:00:05]} 36. Rxe5 {[%emt 0:00:06]} Rd7 {[%emt 0:00:04]} 37. Re6 {[%emt 0:03:02]} Rd1+ {[%emt 0:00:02]} 38. Kg2 {[%emt 0:00:10]} Rd2+ {[%emt 0:00:04]} 39. Kh3 {[%emt 0:00:07]} Rxb2 {[%emt 0:00:04]} 40. Kg4 {[%emt 0:00:07]} b5 {[%emt 0:00:40]} 41. axb5 {[%emt 0:30:12]} Rxb5 {[%emt 0:30:07]} 42. Rc6 {[%emt 0:00:08]} c4 {[%emt 0:02:49]} 43. Kf4 {[%emt 0:01:05]} a4 {[%emt 0:00:21]} 44. Rxc4 {[%emt 0:00:20]} Ra5 {[%emt 0:00:03]} 45. Rc2 {[%emt 0:00:07]} a3 {[%emt 0:00:04]} 46. Ra2 {[%emt 0:00:05]} Kxg6 {[%emt 0:00:06]} 47. g4 {[%emt 0:01:58]} Ra8 {[%emt 0:00:14]} 48. Kg3 {[%emt 0:00:36]} Kg5 {[%emt 0:00:06]} 0-1

[Event "WJCC U20 Open 2019"]
[Site "New Delhi"]
[Date "2019.10.15"]
[Round "1.17"]
[White "Khanin, Semen"]
[Black "Garidmagnai, Byambasuren"]
[Result "1-0"]
[ECO "B19"]
[WhiteElo "2507"]
[BlackElo "2327"]
[Annotator "ChessBase"]
[PlyCount "95"]
[EventDate "2019.10.15"]
[EventType "swiss"]
[EventCountry "IND"]
[SourceTitle "playchess.com"]
[Source "ChessBase"]
[SourceQuality "1"]
[TimeControl "40/5400+30:1800+30"]

1. e4 {[%emt 0:00:00]} c6 {[%emt 0:00:00]} 2. d4 {[%emt 0:00:00]} d5 {[%emt 0:00:00]} 3. Nd2 {[%emt 0:00:10]} dxe4 {[%emt 0:00:00]} 4. Nxe4 {[%emt 0:00:07]} Bf5 {[%emt 0:00:02]} 5. Ng3 {[%emt 0:00:11]} Bg6 {[%emt 0:00:08]} 6. h4 {[%emt 0:00:14]} h6 {[%emt 0:00:22]} 7. Nf3 {[%emt 0:00:08]} Nd7 {[%emt 0:00:07]} 8. h5 {[%emt 0:00:12]} Bh7 {[%emt 0:00:07]} 9. Bd3 {[%emt 0:00:08]} Bxd3 {[%emt 0:00:23]} 10. Qxd3 {[%emt 0:00:08]} e6 {[%emt 0:00:08]} 11. Bd2 {[%emt 0:00:18]} Ngf6 {[%emt 0:00:13]} 12. O-O-O {[%emt 0:00:17]} Bd6 {[%emt 0:00:10]} 13. Ne4 {[%emt 0:02:14]} Nxe4 {[%emt 0:00:36]} 14. Qxe4 {[%emt 0:00:11]} Nf6 {[%emt 0:01:07]} 15. Qe2 {[%emt 0:00:30]} Bc7 {[%emt 0:02:10]} 16. g4 {[%emt 0:16:59]} Qd5 {[%emt 0:06:33]} 17. c4 {[%emt 0:01:57]} Qe4 {[%emt 0:00:18]} 18. Qxe4 {[%emt 0:01:43]} Nxe4 {[%emt 0:00:09]} 19. Be3 {[%emt 0:00:20]} O-O-O {[%emt 0:05:54]} 20. Ne5 {[%emt 0:02:23]} Rhf8 {[%emt 0:03:54]} 21. f3 {[%emt 0:01:09]} Nf6 {[%emt 0:02:35]} 22. Kc2 {[%emt 0:05:45]} Bxe5 {[%emt 0:15:04]} 23. dxe5 {[%emt 0:00:15]} Rxd1 {[%emt 0:00:10]} 24. Rxd1 {[%emt 0:05:05]} Nd7 {[%emt 0:00:09]} 25. Bd4 {[%emt 0:06:11]} b6 {[%emt 0:07:56]} 26. Rg1 {[%emt 0:12:56]} Rh8 {[%emt 0:04:03]} 27. Kd3 {[%emt 0:03:01]} Kd8 {[%emt 0:00:54]} 28. Ke4 {[%emt 0:02:44]} Ke7 {[%emt 0:01:34]} 29. Rd1 {[%emt 0:02:59]} Rd8 {[%emt 0:03:09]} 30. f4 {[%emt 0:04:25]} Nxe5 {[%emt 0:07:02]} 31. Kxe5 {[%emt 0:12:10]} c5 {[%emt 0:00:20]} 32. Bxc5+ {[%emt 0:10:47]} bxc5 {[%emt 0:00:07]} 33. Rxd8 {[%emt 0:00:02]} f6+ {[%emt 0:00:07]} 34. Ke4 {[%emt 0:00:02]} Kxd8 {[%emt 0:00:06]} 35. f5 {[%emt 0:01:56]} Kd7 {[%emt 0:00:14]} 36. fxe6+ {[%emt 0:01:18]} Kxe6 {[%emt 0:00:08]} 37. a3 {[%emt 0:00:43]} a5 {[%emt 0:00:23]} 38. b3 {[%emt 0:00:07]} Kd6 {[%emt 0:03:02]} 39. Kd3 {[%emt 0:00:41]} Ke5 {[%emt 0:06:11]} 40. Kc3 {[%emt 0:00:04]} f5 {[%emt 0:00:15]} 41. gxf5 {[%emt 0:30:14]} Kxf5 {[%emt 0:30:07]} 42. b4 {[%emt 0:00:16]} axb4+ {[%emt 0:00:13]} 43. axb4 {[%emt 0:00:03]} cxb4+ {[%emt 0:00:06]} 44. Kxb4 {[%emt 0:00:10]} g5 {[%emt 0:00:06]} 45. hxg6 {[%emt 0:01:10]} Kxg6 {[%emt 0:00:05]} 46. c5 {[%emt 0:00:40]} Kf6 {[%emt 0:00:26]} 47. Kb5 {[%emt 0:00:13]} Ke7 {[%emt 0:00:24]} 48. Kb6 {[%emt 0:00:07]} 1-0

[Event "WJCC U20 Open 2019"]
[Site "New Delhi"]
[Date "2019.10.15"]
[Round "1.18"]
[White "Nitish, Belurkar"]
[Black "Kuybokarov, Temur"]
[Result "1/2-1/2"]
[ECO "C54"]
[WhiteElo "2311"]
[BlackElo "2501"]
[Annotator "ChessBase"]
[PlyCount "111"]
[EventDate "2019.10.15"]
[EventType "swiss"]
[EventCountry "IND"]
[SourceTitle "playchess.com"]
[Source "ChessBase"]
[SourceQuality "1"]
[TimeControl "40/5400+30:1800+30"]

1. e4 {[%emt 0:00:00]} e5 {[%emt 0:00:00]} 2. Nf3 {[%emt 0:00:00]} Nc6 {[%emt 0:00:16]} 3. Bc4 {[%emt 0:00:00]} Bc5 {[%emt 0:00:17]} 4. c3 {[%emt 0:00:02]} Nf6 {[%emt 0:00:18]} 5. d4 {[%emt 0:00:09]} exd4 {[%emt 0:00:13]} 6. e5 {[%emt 0:00:11]} d5 {[%emt 0:00:17]} 7. Bb5 {[%emt 0:00:08]} Ne4 {[%emt 0:00:15]} 8. cxd4 {[%emt 0:00:09]} Bb6 {[%emt 0:00:17]} 9. Nc3 {[%emt 0:00:22]} O-O {[%emt 0:00:18]} 10. Be3 {[%emt 0:00:08]} Bg4 {[%emt 0:00:26]} 11. h3 {[%emt 0:00:10]} Bh5 {[%emt 0:00:12]} 12. Qc2 {[%emt 0:00:46]} Ba5 {[%emt 0:00:19]} 13. O-O {[%emt 0:21:00]} Bxf3 {[%emt 0:00:11]} 14. gxf3 {[%emt 0:00:06]} Ng5 {[%emt 0:00:39]} 15. Kg2 {[%emt 0:08:03]} Bxc3 {[%emt 0:00:14]} 16. bxc3 {[%emt 0:11:50]} f5 {[%emt 0:00:20]} 17. Bxc6 {[%emt 0:13:01]} bxc6 {[%emt 0:04:05]} 18. Bxg5 {[%emt 0:00:59]} Qxg5+ {[%emt 0:00:17]} 19. Kh2 {[%emt 0:00:19]} Qf4+ {[%emt 0:07:43]} 20. Kg2 {[%emt 0:00:07]} Rae8 {[%emt 0:01:29]} 21. Qc1 {[%emt 0:02:51]} Qh4 {[%emt 0:00:23]} 22. Rh1 {[%emt 0:08:29]} Re6 {[%emt 0:04:20]} 23. f4 {[%emt 0:06:41]} g5 {[%emt 0:07:57]} 24. Qe3 {[%emt 0:10:55]} gxf4 {[%emt 0:05:33]} 25. Qf3 {[%emt 0:00:09]} Rg6+ {[%emt 0:01:43]} 26. Kh2 {[%emt 0:00:13]} h5 {[%emt 0:18:47]} 27. Rag1 {[%emt 0:10:37]} Rg4 {[%emt 0:11:24]} 28. Qxf4 {[%emt 0:00:37]} Kf7 {[%emt 0:04:08]} 29. Rxg4 {[%emt 0:01:58]} hxg4 {[%emt 0:00:07]} 30. Kg1 {[%emt 0:00:04]} Kg6 {[%emt 0:02:42]} 31. hxg4 {[%emt 0:00:04]} Qxg4+ {[%emt 0:00:07]} 32. Qxg4+ {[%emt 0:00:04]} fxg4 {[%emt 0:00:06]} 33. Rh4 {[%emt 0:01:57]} Rf4 {[%emt 0:01:04]} 34. Rh8 {[%emt 0:00:22]} c5 {[%emt 0:00:57]} 35. Rg8+ {[%emt 0:00:51]} Kf7 {[%emt 0:01:41]} 36. Rc8 {[%emt 0:00:37]} cxd4 {[%emt 0:00:15]} 37. cxd4 {[%emt 0:00:11]} Rxd4 {[%emt 0:00:09]} 38. Rxc7+ {[%emt 0:00:04]} Ke6 {[%emt 0:00:07]} 39. Rxa7 {[%emt 0:00:03]} Rd2 {[%emt 0:04:53]} 40. a4 {[%emt 0:01:33]} d4 {[%emt 0:00:20]} 41. Kg2 {[%emt 0:06:08]} Ra2 {[%emt 0:04:14]} 42. Ra8 {[%emt 0:01:24]} Kxe5 {[%emt 0:03:56]} 43. Kg3 {[%emt 0:01:32]} d3 {[%emt 0:00:49]} 44. Rd8 {[%emt 0:00:24]} Ke4 {[%emt 0:00:37]} 45. Re8+ {[%emt 0:05:43]} Kd4 {[%emt 0:01:12]} 46. Rd8+ {[%emt 0:01:32]} Kc3 {[%emt 0:00:13]} 47. Rc8+ {[%emt 0:02:21]} Kd2 {[%emt 0:09:02]} 48. Kxg4 {[%emt 0:01:05]} Rxa4+ {[%emt 0:03:12]} 49. Kg5 {[%emt 0:00:59]} Ra5+ {[%emt 0:00:58]} 50. Kf6 {[%emt 0:06:19]} Ra4 {[%emt 0:08:01]} 51. Ke5 {[%emt 0:02:32]} Ke2 {[%emt 0:00:38]} 52. Rd8 {[%emt 0:00:07]} d2 {[%emt 0:03:24]} 53. f4 {[%emt 0:00:23]} Ke3 {[%emt 0:00:04]} 54. Rxd2 {[%emt 0:00:16]} Kxd2 {[%emt 0:00:11]} 55. f5 {[%emt 0:00:03]} Ke3 {[%emt 0:00:10]} 56. f6 {[%emt 0:00:07] Ke4+ Kxe4} 1/2-1/2

[Event "WJCC U20 Open 2019"]
[Site "New Delhi"]
[Date "2019.10.15"]
[Round "1.20"]
[White "Risting, Eivind Olav"]
[Black "Arjun, Kalyan"]
[Result "1/2-1/2"]
[ECO "D45"]
[WhiteElo "2289"]
[BlackElo "2483"]
[Annotator "ChessBase"]
[PlyCount "60"]
[EventDate "2019.10.15"]
[EventType "swiss"]
[EventCountry "IND"]
[SourceTitle "playchess.com"]
[Source "ChessBase"]
[SourceQuality "1"]
[TimeControl "40/5400+30:1800+30"]

1. d4 {[%emt 0:00:00]} d5 {[%emt 0:00:00]} 2. c4 {[%emt 0:00:00]} c6 {[%emt 0:00:00]} 3. Nc3 {[%emt 0:00:01]} Nf6 {[%emt 0:00:00]} 4. e3 {[%emt 0:00:29]} e6 {[%emt 0:00:05]} 5. Nf3 {[%emt 0:00:22]} Nbd7 {[%emt 0:00:21]} 6. Qc2 {[%emt 0:00:19]} Bd6 {[%emt 0:00:12]} 7. Bd3 {[%emt 0:00:08]} O-O {[%emt 0:00:12]} 8. O-O {[%emt 0:00:05]} dxc4 {[%emt 0:00:10]} 9. Bxc4 {[%emt 0:00:06]} b5 {[%emt 0:00:12]} 10. Be2 {[%emt 0:00:36]} a6 {[%emt 0:00:21]} 11. Ng5 {[%emt 0:02:31]} Qc7 {[%emt 0:01:52]} 12. e4 {[%emt 0:02:15]} Bxh2+ {[%emt 0:00:37]} 13. Kh1 {[%emt 0:00:04]} c5 {[%emt 0:00:08]} 14. e5 {[%emt 0:00:59]} cxd4 {[%emt 0:00:57]} 15. exf6 {[%emt 0:00:31]} Nxf6 {[%emt 0:00:06]} 16. f4 {[%emt 0:01:47]} Bg3 {[%emt 0:01:41]} 17. Rf3 {[%emt 0:12:01]} h6 {[%emt 0:14:56]} 18. Rxg3 {[%emt 0:29:46]} hxg5 {[%emt 0:01:05]} 19. Rh3 {[%emt 0:03:17]} dxc3 {[%emt 0:24:01]} 20. fxg5 {[%emt 0:01:43]} cxb2 {[%emt 0:02:50]} 21. Qxc7 {[%emt 0:29:55]} bxa1=Q {[%emt 0:00:17]} 22. gxf6 {[%emt 0:00:20]} Qxf6 {[%emt 0:21:52]} 23. Bd3 {[%emt 0:05:48]} e5 {[%emt 0:13:42]} 24. Bh7+ {[%emt 0:01:23]} Kh8 {[%emt 0:00:01]} 25. Bf5+ {[%emt 0:00:18]} Kg8 {[%emt 0:00:06]} 26. Bh7+ {[%emt 0:00:18]} Kh8 {[%emt 0:00:02]} 27. Bf5+ {[%emt 0:00:12]} Kg8 {[%emt 0:00:02]} 28. Bh7+ {[%emt 0:00:05]} Kh8 {[%emt 0:00:03]} 29. Bf5+ {[%emt 0:00:06]} Kg8 {[%emt 0:00:03]} 30. Bh7+ {[%emt 0:00:08]} Kh8 {[%emt 0:00:04]} 1/2-1/2

[Event "WJCC U20 Open 2019"]
[Site "New Delhi"]
[Date "2019.10.15"]
[Round "1.21"]
[White "Karthik, Venkataraman"]
[Black "Zlatin, Alexander"]
[Result "0-1"]
[ECO "C78"]
[WhiteElo "2478"]
[BlackElo "2263"]
[Annotator "ChessBase"]
[PlyCount "112"]
[EventDate "2019.10.15"]
[EventType "swiss"]
[EventCountry "IND"]
[SourceTitle "playchess.com"]
[Source "ChessBase"]
[SourceQuality "1"]
[TimeControl "40/5400+30:1800+30"]

1. e4 {[%emt 0:00:00]} e5 {[%emt 0:00:00]} 2. Nf3 {[%emt 0:00:00]} Nc6 {[%emt 0:00:00]} 3. Bb5 {[%emt 0:00:00]} a6 {[%emt 0:00:00]} 4. Ba4 {[%emt 0:00:00]} Nf6 {[%emt 0:00:00]} 5. O-O {[%emt 0:00:00]} b5 {[%emt 0:00:00]} 6. Bb3 {[%emt 0:00:00]} Bc5 {[%emt 0:00:02]} 7. c3 {[%emt 0:00:05]} d6 {[%emt 0:00:24]} 8. d4 {[%emt 0:00:07]} Bb6 {[%emt 0:00:09]} 9. a4 {[%emt 0:00:04]} Bg4 {[%emt 0:01:43]} 10. Bg5 {[%emt 0:07:30]} Rb8 {[%emt 0:03:48]} 11. axb5 {[%emt 0:09:15]} axb5 {[%emt 0:00:49]} 12. d5 {[%emt 0:17:17]} Ne7 {[%emt 0:09:20]} 13. h3 {[%emt 0:00:24]} Bd7 {[%emt 0:02:17]} 14. Nbd2 {[%emt 0:01:06]} Ng6 {[%emt 0:06:38]} 15. Bc2 {[%emt 0:01:25]} O-O {[%emt 0:03:16]} 16. Re1 {[%emt 0:05:17]} h6 {[%emt 0:07:32]} 17. Be3 {[%emt 0:00:08]} Bxe3 {[%emt 0:00:31]} 18. Rxe3 {[%emt 0:00:13]} Nf4 {[%emt 0:01:22]} 19. Kh2 {[%emt 0:02:24]} g5 20. Ne1 {[%emt 0:05:04]} Kh8 {[%emt 0:15:21]} 21. Kg1 {[%emt 0:02:32]} g4 {[%emt 0:05:34]} 22. h4 {[%emt 0:04:58]} N6h5 {[%emt 0:01:00]} 23. g3 {[%emt 0:00:08]} Nh3+ {[%emt 0:00:08]} 24. Kg2 {[%emt 0:00:30]} Qf6 {[%emt 0:03:48]} 25. Nd3 {[%emt 0:00:42]} Rg8 {[%emt 0:05:14]} 26. Qf1 {[%emt 0:07:52]} N5f4+ {[%emt 0:03:59]} 27. gxf4 {[%emt 0:07:32]} exf4 {[%emt 0:00:25]} 28. Rxh3 {[%emt 0:00:11]} gxh3+ {[%emt 0:00:39]} 29. Kh1 {[%emt 0:00:05]} f3 {[%emt 0:05:25]} 30. Qd1 {[%emt 0:04:47]} Qxh4 {[%emt 0:05:43]} 31. Qxf3 {[%emt 0:01:40]} h2 {[%emt 0:01:06]} 32. Qf4 {[%emt 0:13:40]} Rg4 {[%emt 0:07:54]} 33. Qxh2 {[%emt 0:00:06]} Rbg8 {[%emt 0:00:42]} 34. Nf3 {[%emt 0:01:00]} Qf6 {[%emt 0:00:23]} 35. Bd1 {[%emt 0:03:50]} Rxe4 {[%emt 0:00:37]} 36. Nde1 {[%emt 0:00:50]} Bg4 {[%emt 0:02:14]} 37. Ng2 {[%emt 0:00:05]} h5 {[%emt 0:03:30]} 38. Nd2 {[%emt 0:02:07]} Re5 {[%emt 0:01:57]} 39. Ne3 {[%emt 0:00:32]} Bxd1 {[%emt 0:01:44]} 40. Rxd1 {[%emt 0:00:04]} Reg5 {[%emt 0:00:42]} 41. f4 {[%emt 0:32:56]} R5g7 {[%emt 0:33:15]} 42. Nf3 {[%emt 0:03:26]} Re8 {[%emt 0:00:00]} 43. Nd2 {[%emt 0:00:00]} Reg8 {[%emt 0:01:00]} 44. Nf3 {[%emt 0:01:00]} Re8 {[%emt 0:00:00]} 45. Nc2 {[%emt 0:00:00]} Qf5 {[%emt 0:00:00]} 46. Rd4 {[%emt 0:00:00]} Qg4 {[%emt 0:00:00]} 47. Nce1 {[%emt 0:00:00]} Re3 {[%emt 0:00:00]} 48. f5 {[%emt 0:00:00]} Qxf5 {[%emt 0:00:00]} 49. Rf4 {[%emt 0:00:00]} Qxd5 {[%emt 0:00:00]} 50. Qh4 {[%emt 0:00:00]} Re8 {[%emt 0:00:00]} 51. Ng2 {[%emt 0:00:00]} Qd1+ {[%emt 0:00:00]} 52. Kh2 {[%emt 0:00:00]} Qc2 {[%emt 0:00:00]} 53. Ng5 {[%emt 0:00:00]} Qg6 {[%emt 0:00:00]} 54. Rg4 {[%emt 0:00:00]} f6 {[%emt 0:00:00]} 55. Nf4 {[%emt 0:00:00]} Qc2+ {[%emt 0:00:00]} 56. Kg1 {[%emt 0:00:00]} Qd1+ {[%emt 0:00:00]} 0-1

[Event "WJCC U20 Open 2019"]
[Site "New Delhi"]
[Date "2019.10.15"]
[Round "1.23"]
[White "Vykouk, Jan"]
[Black "Aaryan, Varshney"]
[Result "0-1"]
[ECO "B35"]
[WhiteElo "2468"]
[BlackElo "2239"]
[Annotator "ChessBase"]
[PlyCount "130"]
[EventDate "2019.10.15"]
[EventType "swiss"]
[EventCountry "IND"]
[SourceTitle "playchess.com"]
[Source "ChessBase"]
[SourceQuality "1"]
[TimeControl "40/5400+30:1800+30"]

1. e4 {[%emt 0:00:00]} c5 {[%emt 0:00:00]} 2. Nc3 {[%emt 0:00:00]} Nc6 {[%emt 0:00:00]} 3. Nge2 {[%emt 0:00:00]} g6 {[%emt 0:00:14]} 4. d4 {[%emt 0:00:06]} cxd4 {[%emt 0:00:06]} 5. Nxd4 {[%emt 0:00:05]} Bg7 {[%emt 0:00:06]} 6. Be3 {[%emt 0:00:09]} Nf6 {[%emt 0:00:13]} 7. Bc4 {[%emt 0:00:20]} O-O {[%emt 0:01:47]} 8. Bb3 {[%emt 0:00:07]} d6 {[%emt 0:01:35]} 9. f3 {[%emt 0:02:59]} Nxd4 {[%emt 0:00:11]} 10. Bxd4 {[%emt 0:00:10]} Be6 {[%emt 0:00:02]} 11. Qd2 {[%emt 0:12:59]} Qa5 {[%emt 0:00:18]} 12. Bxe6 {[%emt 0:01:16]} fxe6 {[%emt 0:00:17]} 13. O-O-O {[%emt 0:00:57]} b5 {[%emt 0:04:26]} 14. Kb1 {[%emt 0:00:11]} b4 {[%emt 0:00:32]} 15. Ne2 {[%emt 0:00:02]} Rfc8 16. h4 {[%emt 0:01:05]} Rc6 {[%emt 0:07:57]} 17. a3 {[%emt 0:05:31]} Rb8 {[%emt 0:07:48]} 18. Nc1 {[%emt 0:25:00]} Ra6 {[%emt 0:09:58]} 19. Na2 {[%emt 0:02:13]} bxa3 {[%emt 0:02:02]} 20. Qxa5 {[%emt 0:00:26]} Rxa5 {[%emt 0:00:03]} 21. b4 {[%emt 0:00:15]} Ra4 {[%emt 0:05:07]} 22. c3 {[%emt 0:01:14]} a5 {[%emt 0:00:20]} 23. Kc2 {[%emt 0:00:05]} axb4 {[%emt 0:00:31]} 24. Nxb4 {[%emt 0:01:23]} Nd7 {[%emt 0:01:22]} 25. Bxg7 {[%emt 0:00:24]} Kxg7 {[%emt 0:00:03]} 26. Ra1 {[%emt 0:00:20]} Nc5 {[%emt 0:00:40]} 27. Ra2 {[%emt 0:00:14]} Na6 {[%emt 0:00:44]} 28. Nxa6 {[%emt 0:03:13]} Rxa6 {[%emt 0:00:17]} 29. Rha1 {[%emt 0:00:17]} Rab6 {[%emt 0:01:35]} 30. Kd3 {[%emt 0:09:40]} Rb2 {[%emt 0:00:31]} 31. g3 {[%emt 0:01:05]} Rf8 {[%emt 0:03:31]} 32. Ke3 {[%emt 0:03:04]} Rxa2 {[%emt 0:01:55]} 33. Rxa2 {[%emt 0:00:05]} Ra8 {[%emt 0:00:01]} 34. Kd4 {[%emt 0:01:22]} Kf6 {[%emt 0:01:13]} 35. Kc4 {[%emt 0:00:11]} g5 {[%emt 0:05:03]} 36. hxg5+ {[%emt 0:00:38]} Kxg5 {[%emt 0:00:02]} 37. Kd3 {[%emt 0:12:23]} h5 {[%emt 0:01:18]} 38. Ke3 {[%emt 0:00:07]} e5 {[%emt 0:03:14]} 39. Kf2 {[%emt 0:05:40]} h4 {[%emt 0:00:33]} 40. Kg2 {[%emt 0:00:28]} hxg3 {[%emt 0:00:28]} 41. Kxg3 {[%emt 0:30:19]} Ra4 {[%emt 0:30:11]} 42. Kf2 {[%emt 0:00:07]} e6 {[%emt 0:07:05]} 43. Ke3 {[%emt 0:01:35]} d5 {[%emt 0:00:56]} 44. exd5 {[%emt 0:00:00]} exd5 {[%emt 0:00:00]} 45. Ke2 {[%emt 0:00:00]} Kf4 {[%emt 0:00:00]} 46. Kf2 {[%emt 0:00:00]} Ra7 {[%emt 0:00:00]} 47. Ke2 {[%emt 0:00:00]} Ra8 {[%emt 0:00:00]} 48. Kf2 {[%emt 0:00:00]} e4 {[%emt 0:00:00]} 49. fxe4 {[%emt 0:00:00]} dxe4 {[%emt 0:00:00]} 50. c4 {[%emt 0:00:00]} e3+ {[%emt 0:00:00]} 51. Ke2 {[%emt 0:00:00]} Ke4 {[%emt 0:00:00]} 52. c5 {[%emt 0:00:00]} Kd4 {[%emt 0:00:00]} 53. c6 {[%emt 0:00:00]} Kc3 {[%emt 0:00:00]} 54. Kxe3 {[%emt 0:01:53]} Kb3 {[%emt 0:00:00]} 55. Ra1 {[%emt 0:02:40]} Kb2 {[%emt 0:00:00]} 56. Rh1 {[%emt 0:10:27]} Rc8 {[%emt 0:00:00]} 57. Rh2+ {[%emt 0:02:57]} Kb3 {[%emt 0:00:00]} 58. Rh7 {[%emt 0:02:21]} Rxc6 {[%emt 0:00:00]} 59. Rb7+ {[%emt 0:00:05]} Kc2 {[%emt 0:00:00]} 60. Ra7 {[%emt 0:00:15]} Rc3+ {[%emt 0:00:00]} 61. Kd4 {[%emt 0:00:22]} Kb2 {[%emt 0:00:00]} 62. Ra8 {[%emt 0:01:27]} Rb3 {[%emt 0:00:00]} 63. Rg8 {[%emt 0:00:47]} a2 {[%emt 0:00:00]} 64. Rg2+ {[%emt 0:00:12]} Ka3 {[%emt 0:00:00]} 65. Rg1 {[%emt 0:00:45]} Rb1 {[%emt 0:00:00]} 0-1

[Event "WJCC U20 Open 2019"]
[Site "New Delhi"]
[Date "2019.10.15"]
[Round "1.24"]
[White "Saurabh, Anand"]
[Black "Janik, Igor"]
[Result "1/2-1/2"]
[ECO "B35"]
[WhiteElo "2236"]
[BlackElo "2467"]
[Annotator "ChessBase"]
[PlyCount "62"]
[EventDate "2019.10.15"]
[EventType "swiss"]
[EventCountry "IND"]
[SourceTitle "playchess.com"]
[Source "ChessBase"]
[SourceQuality "1"]
[TimeControl "40/5400+30:1800+30"]

1. e4 {[%emt 0:00:00]} c5 {[%emt 0:00:00]} 2. Nf3 {[%emt 0:00:00]} Nc6 {[%emt 0:00:00]} 3. Nc3 {[%emt 0:00:09]} g6 4. d4 {[%emt 0:00:21]} cxd4 {[%emt 0:00:14]} 5. Nxd4 {[%emt 0:00:07]} Bg7 {[%emt 0:00:28]} 6. Be3 {[%emt 0:00:24]} Nf6 {[%emt 0:00:02]} 7. Bc4 {[%emt 0:01:01]} O-O {[%emt 0:00:13]} 8. Bb3 {[%emt 0:00:43]} d6 {[%emt 0:00:59]} 9. f3 {[%emt 0:00:26]} Nxd4 {[%emt 0:00:22]} 10. Bxd4 {[%emt 0:00:11]} Be6 {[%emt 0:00:16]} 11. Qd2 {[%emt 0:00:36]} Qa5 {[%emt 0:00:12]} 12. O-O-O {[%emt 0:00:24]} b5 {[%emt 0:00:57]} 13. Kb1 {[%emt 0:02:58]} Bxb3 {[%emt 0:00:31]} 14. cxb3 {[%emt 0:00:17]} Rfc8 {[%emt 0:00:14]} 15. g4 {[%emt 0:01:08]} b4 {[%emt 0:01:23]} 16. Ne2 {[%emt 0:00:11]} Qb5 {[%emt 0:00:28]} 17. h4 {[%emt 0:01:01]} a5 {[%emt 0:00:33]} 18. h5 {[%emt 0:01:28]} a4 {[%emt 0:01:43]} 19. bxa4 {[%emt 0:00:26]} Qxa4 {[%emt 0:00:16]} 20. b3 {[%emt 0:00:09]} Qa3 {[%emt 0:13:54]} 21. h6 {[%emt 0:06:54]} Bh8 {[%emt 0:03:34]} 22. Rc1 {[%emt 0:06:58]} Nd7 {[%emt 0:11:35]} 23. Rxc8+ {[%emt 0:10:49]} Rxc8 {[%emt 0:00:57]} 24. Bxh8 {[%emt 0:00:18]} Kxh8 {[%emt 0:00:23]} 25. Qd4+ {[%emt 0:00:26]} f6 {[%emt 0:00:59]} 26. Qd5 {[%emt 0:00:43]} Ne5 {[%emt 0:04:58]} 27. f4 {[%emt 0:07:57]} Qa6 {[%emt 0:11:52]} 28. Nc1 {[%emt 0:09:37]} Nxg4 {[%emt 0:00:46]} 29. Qf7 {[%emt 0:04:14]} Nxh6 {[%emt 0:01:54]} 30. Rxh6 {[%emt 0:03:01]} Rxc1+ {[%emt 0:00:12]} 31. Kxc1 {[%emt 0:00:19]} Qf1+ {[%emt 0:00:10]} 1/2-1/2